[Event "*** Titled Tuesday Blitz"]
[Site "Chess.com"]
[Date "2021.04.27"]
[Round "3"]
[White "Durarbayli"]
[Black "MichailovM"]
[Result "1-0"]
[WhiteElo "2744"]
[BlackElo "2452"]
[TimeControl "180+1"]
[EndTime "10:29:45 PDT"]
[Termination "Durarbayli won by resignation"]

1. e4 {[%clk 0:02:59.2]} 1... c5 {[%clk 0:02:58.6]} 2. Nf3 {[%clk 0:02:55.1]}
2... d6 {[%clk 0:02:58.6]} 3. Bc4 {[%clk 0:02:45.7]} 3... Nf6 {[%clk 0:02:57.5]}
4. Qe2 {[%clk 0:02:42.3]} 4... Nc6 {[%clk 0:02:50.4]} 5. c3 {[%clk 0:02:39.4]}
5... e6 {[%clk 0:02:49.8]} 6. O-O {[%clk 0:02:36]} 6... Be7 {[%clk 0:02:49.1]}
7. d4 {[%clk 0:02:32.4]} 7... cxd4 {[%clk 0:02:47.9]} 8. cxd4 {[%clk 0:02:33.3]}
8... d5 {[%clk 0:02:39.9]} 9. exd5 {[%clk 0:02:29.2]} 9... exd5 {[%clk
0:02:35.6]} 10. Bd3 {[%clk 0:02:21.4]} 10... Bg4 {[%clk 0:02:30.5]} 11. Be3
{[%clk 0:02:13]} 11... O-O {[%clk 0:02:29.9]} 12. h3 {[%clk 0:02:04.6]} 12...
Bh5 {[%clk 0:02:29.4]} 13. Nc3 {[%clk 0:01:57.7]} 13... Re8 {[%clk 0:02:27.8]}
14. g4 {[%clk 0:01:44.5]} 14... Bg6 {[%clk 0:02:27.1]} 15. Bxg6 {[%clk 0:01:28]}
15... hxg6 {[%clk 0:02:17]} 16. Ng5 {[%clk 0:01:14.3]} 16... Qb6 {[%clk
0:01:47.9]} 17. Rad1 {[%clk 0:01:08.6]} 17... Bb4 {[%clk 0:01:46.1]} 18. Na4
{[%clk 0:00:48.3]} 18... Qa5 {[%clk 0:01:41.7]} 19. b3 {[%clk 0:00:46.3]} 19...
b5 {[%clk 0:01:21.8]} 20. Nb2 {[%clk 0:00:34.8]} 20... Bc3 {[%clk 0:01:08.1]}
21. Qc2 {[%clk 0:00:26.9]} 21... Rac8 {[%clk 0:01:04.4]} 22. Qb1 {[%clk
0:00:11.2]} 22... Ne4 {[%clk 0:00:59.5]} 23. Nd3 {[%clk 0:00:09]} 23... Nxg5
{[%clk 0:00:56.1]} 24. Bxg5 {[%clk 0:00:08.6]} 24... Nxd4 {[%clk 0:00:56.4]} 25.
Kg2 {[%clk 0:00:08.5]} 25... Ne6 {[%clk 0:00:49.6]} 26. Bh4 {[%clk 0:00:08.1]}
26... Bd4 {[%clk 0:00:44.3]} 27. Bg3 {[%clk 0:00:08.2]} 27... Qb6 {[%clk
0:00:39.9]} 28. h4 {[%clk 0:00:08.6]} 28... Bf6 {[%clk 0:00:30.6]} 29. Rh1
{[%clk 0:00:08.3]} 29... Nc5 {[%clk 0:00:27.6]} 30. Nf4 {[%clk 0:00:06.2]} 30...
d4 {[%clk 0:00:27.2]} 31. g5 {[%clk 0:00:04.8]} 31... Qc6+ {[%clk 0:00:25.7]}
32. f3 {[%clk 0:00:02.4]} 32... Be5 {[%clk 0:00:26.1]} 33. Nh3 {[%clk
0:00:02.6]} 33... Bxg3 {[%clk 0:00:25.7]} 34. Kxg3 {[%clk 0:00:03.5]} 34... Re3
{[%clk 0:00:25.9]} 35. Rhf1 {[%clk 0:00:02.4]} 35... d3 {[%clk 0:00:22.1]} 36.
Nf4 {[%clk 0:00:02.4]} 36... Qd6 {[%clk 0:00:20]} 37. Kg4 {[%clk 0:00:03.3]}
37... Qd4 {[%clk 0:00:17]} 38. Qa1 {[%clk 0:00:03]} 38... Qxa1 {[%clk
0:00:15.4]} 39. Rxa1 {[%clk 0:00:03.9]} 39... Rd8 {[%clk 0:00:16]} 40. Rad1
{[%clk 0:00:04.2]} 40... a5 {[%clk 0:00:13.9]} 41. Rd2 {[%clk 0:00:04.3]} 41...
b4 {[%clk 0:00:13.8]} 42. Rfd1 {[%clk 0:00:04.7]} 42... Kf8 {[%clk 0:00:13.6]}
43. Kg3 {[%clk 0:00:04.5]} 43... Ke7 {[%clk 0:00:13.9]} 44. Kf2 {[%clk 0:00:05]}
44... Re5 {[%clk 0:00:09.4]} 45. Nxd3 {[%clk 0:00:04.8]} 45... Red5 {[%clk
0:00:04.5]} 46. Ke3 {[%clk 0:00:05.7]} 46... Nxd3 {[%clk 0:00:04.7]} 47. Rxd3
{[%clk 0:00:06.6]} 47... Rxd3+ {[%clk 0:00:03.9]} 48. Rxd3 {[%clk 0:00:07.5]}
48... Rxd3+ {[%clk 0:00:04]} 49. Kxd3 {[%clk 0:00:08.4]} 49... Ke6 {[%clk
0:00:04.9]} 50. Ke4 {[%clk 0:00:06.6]} 50... Kd6 {[%clk 0:00:05.1]} 51. Kd4
{[%clk 0:00:05.2]} 51... Ke6 {[%clk 0:00:05.6]} 52. Ke4 {[%clk 0:00:05.5]} 52...
Kd6 {[%clk 0:00:06]} 53. f4 {[%clk 0:00:03.9]} 53... Ke6 {[%clk 0:00:06.6]} 54.
Kd4 {[%clk 0:00:03.6]} 54... Kf5 {[%clk 0:00:07.2]} 55. Ke3 {[%clk 0:00:03.2]}
55... Ke6 {[%clk 0:00:06.3]} 56. Ke4 {[%clk 0:00:03.2]} 56... Kd6 {[%clk
0:00:06.7]} 57. f5 {[%clk 0:00:03.7]} 57... Ke7 {[%clk 0:00:01.2]} 58. Ke5
{[%clk 0:00:02.4]} 58... Kd7 {[%clk 0:00:01.6]} 59. f6 {[%clk 0:00:02]} 59...
gxf6+ {[%clk 0:00:02.1]} 60. Kxf6 {[%clk 0:00:02.9]} 60... Ke8 {[%clk
0:00:02.7]} 61. Ke5 {[%clk 0:00:03.3]} 61... Ke7 {[%clk 0:00:03.1]} 62. Kd5
{[%clk 0:00:03.8]} 62... Kd7 {[%clk 0:00:03.5]} 63. Kc5 {[%clk 0:00:03.9]} 63...
Ke6 {[%clk 0:00:03.9]} 64. Kb5 {[%clk 0:00:04]} 64... Kf5 {[%clk 0:00:04.8]} 65.
Kxa5 {[%clk 0:00:04.6]} 65... Kg4 {[%clk 0:00:05.4]} 66. Kxb4 {[%clk 0:00:05.1]}
66... Kxh4 {[%clk 0:00:06.3]} 67. a4 {[%clk 0:00:05.6]} 67... Kxg5 {[%clk
0:00:07.2]} 68. a5 {[%clk 0:00:06.5]} 68... f5 {[%clk 0:00:08.1]} 69. a6 {[%clk
0:00:07.4]} 69... f4 {[%clk 0:00:09]} 70. a7 {[%clk 0:00:08.3]} 70... Kg4 {[%clk
0:00:08.2]} 71. a8=Q {[%clk 0:00:09.2]} 71... f3 {[%clk 0:00:09.1]} 72. Qf8
{[%clk 0:00:09.5]} 72... Kg3 {[%clk 0:00:10]} 73. Kc3 {[%clk 0:00:09.6]} 73...
f2 {[%clk 0:00:10.9]} 74. Kd2 {[%clk 0:00:10]} 74... Kg2 {[%clk 0:00:11.8]} 75.
Ke2 {[%clk 0:00:10.9]} 75... f1=Q+ {[%clk 0:00:12]} 1-0

[Event "*** Titled Tuesday Blitz"]
[Site "Chess.com"]
[Date "2021.04.27"]
[Round "3"]
[White "Vaathi_Coming"]
[Black "AwareIdea"]
[Result "1-0"]
[WhiteElo "2879"]
[BlackElo "2568"]
[TimeControl "180+1"]
[EndTime "10:29:46 PDT"]
[Termination "Vaathi_Coming won on time"]

1. b3 {[%clk 0:03:00.9]} 1... d5 {[%clk 0:02:58.5]} 2. Bb2 {[%clk 0:03:01.8]}
2... Bf5 {[%clk 0:02:58.5]} 3. Nf3 {[%clk 0:03:01.5]} 3... e6 {[%clk 0:02:58.6]}
4. e3 {[%clk 0:03:01.8]} 4... c6 {[%clk 0:02:59.1]} 5. Bd3 {[%clk 0:03:01.6]}
5... Bg6 {[%clk 0:02:58.4]} 6. h4 {[%clk 0:02:58]} 6... Nf6 {[%clk 0:02:54.8]}
7. Nc3 {[%clk 0:02:49.1]} 7... Nbd7 {[%clk 0:02:53.4]} 8. Ne2 {[%clk 0:02:26.3]}
8... Bxd3 {[%clk 0:02:49.5]} 9. cxd3 {[%clk 0:02:27.2]} 9... Bd6 {[%clk
0:02:49.1]} 10. h5 {[%clk 0:02:25.5]} 10... h6 {[%clk 0:02:49.1]} 11. Qc2 {[%clk
0:02:22.5]} 11... Qc7 {[%clk 0:02:48.5]} 12. O-O-O {[%clk 0:02:20.6]} 12... Ne5
{[%clk 0:02:47.7]} 13. Nxe5 {[%clk 0:02:13.6]} 13... Bxe5 {[%clk 0:02:48.6]} 14.
d4 {[%clk 0:02:10]} 14... Bd6 {[%clk 0:02:48]} 15. f3 {[%clk 0:02:10.7]} 15...
a5 {[%clk 0:02:37.3]} 16. g4 {[%clk 0:02:03.1]} 16... Nd7 {[%clk 0:02:35.3]} 17.
Rdg1 {[%clk 0:01:56.6]} 17... a4 {[%clk 0:02:33.8]} 18. g5 {[%clk 0:01:56.5]}
18... axb3 {[%clk 0:02:29.5]} 19. axb3 {[%clk 0:01:57.4]} 19... Ba3 {[%clk
0:02:27.8]} 20. gxh6 {[%clk 0:01:54.4]} 20... gxh6 {[%clk 0:02:26.2]} 21. Nf4
{[%clk 0:01:54.2]} 21... Qb6 {[%clk 0:02:12.9]} 22. Bxa3 {[%clk 0:01:44.1]}
22... Rxa3 {[%clk 0:02:13.8]} 23. Kb2 {[%clk 0:01:44.1]} 23... Ra5 {[%clk
0:01:53.2]} 24. Ra1 {[%clk 0:01:42.6]} 24... Ke7 {[%clk 0:01:49.9]} 25. Rxa5
{[%clk 0:01:38.3]} 25... Qxa5 {[%clk 0:01:50.8]} 26. Ra1 {[%clk 0:01:38.5]}
26... Qb5 {[%clk 0:01:48.2]} 27. Qb1 {[%clk 0:01:08.3]} 27... Nb6 {[%clk
0:01:44]} 28. Qg1 {[%clk 0:01:04.8]} 28... c5 {[%clk 0:01:22.4]} 29. Qg7 {[%clk
0:01:00.9]} 29... Rc8 {[%clk 0:00:58]} 30. Ng6+ {[%clk 0:00:58.2]} 30... Kd6
{[%clk 0:00:57]} 31. Qxf7 {[%clk 0:00:51.2]} 31... Nc4+ {[%clk 0:00:22.5]} 32.
Kc1 {[%clk 0:00:48.2]} 32... cxd4 {[%clk 0:00:20.2]} 33. Qe7+ {[%clk 0:00:46.3]}
33... Kc6 {[%clk 0:00:18.6]} 34. exd4 {[%clk 0:00:30]} 34... Qxb3 {[%clk
0:00:15.1]} 35. Rb1 {[%clk 0:00:15.7]} 35... Qa3+ {[%clk 0:00:13.7]} 36. Qxa3
{[%clk 0:00:09.4]} 36... Nxa3 {[%clk 0:00:13.3]} 37. Rb3 {[%clk 0:00:08.1]}
37... Ra8 {[%clk 0:00:12.3]} 38. Ne5+ {[%clk 0:00:05.5]} 38... Kc7 {[%clk
0:00:12.6]} 39. Rc3+ {[%clk 0:00:05.2]} 39... Kd6 {[%clk 0:00:11.8]} 40. Nf7+
{[%clk 0:00:05.1]} 40... Ke7 {[%clk 0:00:11.5]} 41. Rc7+ {[%clk 0:00:04.2]}
41... Kf6 {[%clk 0:00:11.3]} 42. Nxh6 {[%clk 0:00:05.1]} 42... Nc4 {[%clk
0:00:11.5]} 43. f4 {[%clk 0:00:04.4]} 43... Nd6 {[%clk 0:00:08.1]} 44. Rd7
{[%clk 0:00:03.6]} 44... Ra6 {[%clk 0:00:08.3]} 45. Ng8+ {[%clk 0:00:03.1]}
45... Kf5 {[%clk 0:00:08.5]} 46. h6 {[%clk 0:00:03.6]} 46... Ra1+ {[%clk
0:00:06.8]} 47. Kb2 {[%clk 0:00:03.7]} 47... Rh1 {[%clk 0:00:06]} 48. Rxd6
{[%clk 0:00:03.3]} 48... Rh2 {[%clk 0:00:05.9]} 49. Kc3 {[%clk 0:00:03.2]} 49...
b5 {[%clk 0:00:04.8]} 50. d3 {[%clk 0:00:03.4]} 50... Kg6 {[%clk 0:00:04.4]} 51.
Rxe6+ {[%clk 0:00:03.5]} 51... Kf7 {[%clk 0:00:05.3]} 52. Rb6 {[%clk 0:00:03.1]}
52... Kxg8 {[%clk 0:00:05.7]} 53. Rxb5 {[%clk 0:00:03.8]} 53... Rh5 {[%clk
0:00:05.2]} 54. Rc5 {[%clk 0:00:03.4]} 54... Rf5 {[%clk 0:00:05.4]} 55. Rc6
{[%clk 0:00:03.7]} 55... Kh7 {[%clk 0:00:05.3]} 56. Kb4 {[%clk 0:00:03.8]} 56...
Rxf4 {[%clk 0:00:06]} 57. Kc5 {[%clk 0:00:03.9]} 57... Rf3 {[%clk 0:00:06.6]}
58. Kxd5 {[%clk 0:00:04.1]} 58... Rxd3 {[%clk 0:00:07.2]} 59. Re6 {[%clk
0:00:04.3]} 59... Ra3 {[%clk 0:00:05.9]} 60. Rc6 {[%clk 0:00:04.5]} 60... Ra5+
{[%clk 0:00:05.1]} 61. Ke4 {[%clk 0:00:04]} 61... Rh5 {[%clk 0:00:04.7]} 62. d5
{[%clk 0:00:03.9]} 62... Rh1 {[%clk 0:00:02.5]} 63. Ke5 {[%clk 0:00:04.2]} 63...
Re1+ {[%clk 0:00:02.3]} 64. Kd4 {[%clk 0:00:04.7]} 64... Rd1+ {[%clk 0:00:02.6]}
65. Kc5 {[%clk 0:00:04.9]} 65... Rc1+ {[%clk 0:00:02.9]} 66. Kd6 {[%clk
0:00:05.1]} 66... Rd1 {[%clk 0:00:03.2]} 67. Ke5 {[%clk 0:00:04.7]} 67... Re1+
{[%clk 0:00:03.3]} 68. Kd6 {[%clk 0:00:04.9]} 68... Kxh6 {[%clk 0:00:03.1]} 69.
Kc7+ {[%clk 0:00:05]} 69... Kg7 {[%clk 0:00:03.2]} 70. d6 {[%clk 0:00:05.6]} 1-0

[Event "*** Titled Tuesday Blitz"]
[Site "Chess.com"]
[Date "2021.04.27"]
[Round "3"]
[White "chessmachine14"]
[Black "JoachimMouhamad"]
[Result "0-1"]
[WhiteElo "2262"]
[BlackElo "2452"]
[TimeControl "180+1"]
[EndTime "10:29:50 PDT"]
[Termination "JoachimMouhamad won by checkmate"]

1. d4 {[%clk 0:03:00.9]} 1... d5 {[%clk 0:02:59.5]} 2. Nf3 {[%clk 0:02:58.4]}
2... e6 {[%clk 0:02:57.5]} 3. g3 {[%clk 0:02:49]} 3... c5 {[%clk 0:02:43.1]} 4.
c3 {[%clk 0:02:48]} 4... Nc6 {[%clk 0:02:41.2]} 5. Bg2 {[%clk 0:02:48]} 5... Nf6
{[%clk 0:02:38.3]} 6. O-O {[%clk 0:02:47.6]} 6... Be7 {[%clk 0:02:37.6]} 7. Nbd2
{[%clk 0:02:38.3]} 7... O-O {[%clk 0:02:35.8]} 8. Re1 {[%clk 0:02:38.6]} 8...
Ne4 {[%clk 0:02:30.1]} 9. Ne5 {[%clk 0:02:17.1]} 9... Nxe5 {[%clk 0:02:26.6]}
10. Nxe4 {[%clk 0:02:11.2]} 10... Nd7 {[%clk 0:02:16.7]} 11. Nxc5 {[%clk
0:01:52.1]} 11... Nxc5 {[%clk 0:02:15.5]} 12. dxc5 {[%clk 0:01:52.2]} 12... Bxc5
{[%clk 0:02:16.4]} 13. e4 {[%clk 0:01:46.9]} 13... Qb6 {[%clk 0:01:52.4]} 14.
Qc2 {[%clk 0:01:33]} 14... dxe4 {[%clk 0:01:44.8]} 15. Bxe4 {[%clk 0:01:32.2]}
15... f5 {[%clk 0:01:33.2]} 16. Bg2 {[%clk 0:01:31.4]} 16... Bd7 {[%clk
0:01:23.3]} 17. Bf4 {[%clk 0:01:15.1]} 17... Rae8 {[%clk 0:01:16.2]} 18. b4
{[%clk 0:01:08.9]} 18... Be7 {[%clk 0:01:09.4]} 19. Rad1 {[%clk 0:00:58.1]}
19... Bc8 {[%clk 0:00:32.7]} 20. a3 {[%clk 0:00:40.5]} 20... Bf6 {[%clk
0:00:32.8]} 21. Bd6 {[%clk 0:00:35]} 21... Rf7 {[%clk 0:00:29.9]} 22. c4 {[%clk
0:00:35.2]} 22... Rd7 {[%clk 0:00:21.6]} 23. c5 {[%clk 0:00:34.8]} 23... Qd8
{[%clk 0:00:21.7]} 24. Bf1 {[%clk 0:00:19]} 24... g6 {[%clk 0:00:20.3]} 25. Bb5
{[%clk 0:00:18.3]} 25... Kg7 {[%clk 0:00:19]} 26. Qb3 {[%clk 0:00:18]} 26... e5
{[%clk 0:00:17.6]} 27. Bxd7 {[%clk 0:00:17.1]} 27... Bxd7 {[%clk 0:00:17.6]} 28.
b5 {[%clk 0:00:16.9]} 28... Qc8 {[%clk 0:00:17.4]} 29. Qb4 {[%clk 0:00:12.7]}
29... a6 {[%clk 0:00:17]} 30. bxa6 {[%clk 0:00:12.3]} 30... bxa6 {[%clk
0:00:16.7]} 31. Rb1 {[%clk 0:00:12.5]} 31... Bc6 {[%clk 0:00:16.6]} 32. Qb6
{[%clk 0:00:12.8]} 32... e4 {[%clk 0:00:11]} 33. Qc7+ {[%clk 0:00:11.6]} 33...
Qxc7 {[%clk 0:00:09.1]} 34. Bxc7 {[%clk 0:00:12.1]} 34... Bb5 {[%clk 0:00:07.7]}
35. Red1 {[%clk 0:00:09.7]} 35... Rc8 {[%clk 0:00:07.2]} 36. Bd6 {[%clk
0:00:09.1]} 36... Bg5 {[%clk 0:00:06]} 37. Rb4 {[%clk 0:00:09.1]} 37... e3
{[%clk 0:00:06]} 38. f4 {[%clk 0:00:08.6]} 38... Bf6 {[%clk 0:00:05.3]} 39. Re1
{[%clk 0:00:08.9]} 39... e2 {[%clk 0:00:05.7]} 40. Rb2 {[%clk 0:00:08]} 40...
Bxb2 {[%clk 0:00:05.6]} 41. Kf2 {[%clk 0:00:07.6]} 41... Bd4+ {[%clk 0:00:06.3]}
42. Kf3 {[%clk 0:00:07.5]} 42... Bc3 {[%clk 0:00:07.2]} 43. Rxe2 {[%clk
0:00:06.5]} 43... Bxe2+ {[%clk 0:00:07.5]} 44. Kxe2 {[%clk 0:00:06.9]} 44... Bd4
{[%clk 0:00:07.9]} 45. Kd3 {[%clk 0:00:07.3]} 45... Bxc5 {[%clk 0:00:08.2]} 46.
Be5+ {[%clk 0:00:07.9]} 46... Kf7 {[%clk 0:00:08.8]} 47. a4 {[%clk 0:00:08.4]}
47... Be7 {[%clk 0:00:08.2]} 48. Kd4 {[%clk 0:00:08.1]} 48... Ke6 {[%clk
0:00:09.1]} 49. h4 {[%clk 0:00:07.2]} 49... Rd8+ {[%clk 0:00:09.6]} 50. Kc4
{[%clk 0:00:06.9]} 50... Rd5 {[%clk 0:00:10.5]} 51. a5 {[%clk 0:00:06.7]} 51...
Bd8 {[%clk 0:00:10.2]} 52. Bc3 {[%clk 0:00:06.4]} 52... Bxa5 {[%clk 0:00:09.7]}
53. Bh8 {[%clk 0:00:05]} 53... Bd8 {[%clk 0:00:08.7]} 54. Kb4 {[%clk 0:00:04.6]}
54... a5+ {[%clk 0:00:08.7]} 55. Ka4 {[%clk 0:00:04.3]} 55... Rd3 {[%clk
0:00:08.6]} 56. h5 {[%clk 0:00:03.1]} 56... gxh5 {[%clk 0:00:08.6]} 57. g4
{[%clk 0:00:03.7]} 57... hxg4 {[%clk 0:00:08.4]} 58. Be5 {[%clk 0:00:01.8]}
58... Rd5 {[%clk 0:00:08.3]} 59. Kb3 {[%clk 0:00:01.6]} 59... Rxe5 {[%clk
0:00:08.3]} 60. Ka4 {[%clk 0:00:01.6]} 60... Re4+ {[%clk 0:00:07.2]} 61. Kb5
{[%clk 0:00:01.4]} 61... Rxf4 {[%clk 0:00:06.6]} 62. Kc6 {[%clk 0:00:01.7]}
62... g3 {[%clk 0:00:07.5]} 63. Kb7 {[%clk 0:00:01.9]} 63... g2 {[%clk
0:00:08.4]} 64. Kc8 {[%clk 0:00:02.3]} 64... Bf6 {[%clk 0:00:09.3]} 65. Kc7
{[%clk 0:00:01.7]} 65... a4 {[%clk 0:00:10.2]} 66. Kc6 {[%clk 0:00:01.8]} 66...
a3 {[%clk 0:00:11.1]} 67. Kb5 {[%clk 0:00:02.1]} 67... a2 {[%clk 0:00:12]} 68.
Ka5 {[%clk 0:00:02.5]} 68... h5 {[%clk 0:00:12.4]} 69. Kb5 {[%clk 0:00:02.9]}
69... h4 {[%clk 0:00:13.3]} 70. Kc6 {[%clk 0:00:02.8]} 70... h3 {[%clk
0:00:14.2]} 71. Kb5 {[%clk 0:00:03.2]} 71... h2 {[%clk 0:00:15.1]} 72. Kc6
{[%clk 0:00:03.6]} 72... h1=Q {[%clk 0:00:15]} 73. Kb5 {[%clk 0:00:03.8]} 73...
Qc1 {[%clk 0:00:14.7]} 74. Kb6 {[%clk 0:00:03.7]} 74... Rb4+ {[%clk 0:00:14.7]}
75. Ka5 {[%clk 0:00:02.6]} 75... Qc5+ {[%clk 0:00:15.1]} 76. Ka6 {[%clk
0:00:02.6]} 76... Qb6# {[%clk 0:00:16]} 0-1

[Event "*** Titled Tuesday Blitz"]
[Site "Chess.com"]
[Date "2021.04.27"]
[Round "3"]
[White "Buffy7"]
[Black "MartinMatthiesen"]
[Result "0-1"]
[WhiteElo "2687"]
[BlackElo "2453"]
[TimeControl "180+1"]
[EndTime "10:29:51 PDT"]
[Termination "MartinMatthiesen won by checkmate"]

1. d4 {[%clk 0:02:59.6]} 1... Nf6 {[%clk 0:02:57.7]} 2. c4 {[%clk 0:03:00]} 2...
e6 {[%clk 0:02:57.8]} 3. Nf3 {[%clk 0:02:59]} 3... d5 {[%clk 0:02:57]} 4. g3
{[%clk 0:02:59.5]} 4... Be7 {[%clk 0:02:55.1]} 5. Bg2 {[%clk 0:02:57.1]} 5...
O-O {[%clk 0:02:55.2]} 6. O-O {[%clk 0:02:56.8]} 6... dxc4 {[%clk 0:02:55.4]} 7.
Qc2 {[%clk 0:02:55.3]} 7... a6 {[%clk 0:02:55.5]} 8. a4 {[%clk 0:02:55.6]} 8...
b6 {[%clk 0:02:50.9]} 9. Bg5 {[%clk 0:02:54.9]} 9... Bb7 {[%clk 0:02:46.6]} 10.
Nbd2 {[%clk 0:02:55.1]} 10... Nbd7 {[%clk 0:02:43.7]} 11. e4 {[%clk 0:02:49.8]}
11... c5 {[%clk 0:02:31.5]} 12. e5 {[%clk 0:02:28.2]} 12... Nd5 {[%clk
0:02:28.5]} 13. Bxe7 {[%clk 0:02:28.2]} 13... Qxe7 {[%clk 0:02:26]} 14. Nxc4
{[%clk 0:02:28.7]} 14... cxd4 {[%clk 0:02:20.4]} 15. Nxd4 {[%clk 0:02:18.3]}
15... Rfc8 {[%clk 0:02:02.3]} 16. b3 {[%clk 0:02:15.4]} 16... Nxe5 {[%clk
0:01:43]} 17. Rfe1 {[%clk 0:02:08.3]} 17... Nxc4 {[%clk 0:01:37.4]} 18. bxc4
{[%clk 0:02:09.2]} 18... Nb4 {[%clk 0:01:36.1]} 19. Qb3 {[%clk 0:02:09.4]} 19...
Bxg2 {[%clk 0:01:35.6]} 20. Kxg2 {[%clk 0:02:10.3]} 20... Qb7+ {[%clk
0:01:29.2]} 21. Kg1 {[%clk 0:02:06.7]} 21... Nc6 {[%clk 0:01:28.6]} 22. Rad1
{[%clk 0:02:01.2]} 22... Na5 {[%clk 0:01:26.1]} 23. Qe3 {[%clk 0:01:59.3]} 23...
Nxc4 {[%clk 0:01:25.5]} 24. Qg5 {[%clk 0:01:59.4]} 24... h6 {[%clk 0:01:24.6]}
25. Qg4 {[%clk 0:01:59.8]} 25... Rc5 {[%clk 0:01:12.5]} 26. Nxe6 {[%clk
0:01:56.6]} 26... fxe6 {[%clk 0:01:05.8]} 27. Rxe6 {[%clk 0:01:56.7]} 27... Qf7
{[%clk 0:00:40.3]} 28. Rde1 {[%clk 0:01:52]} 28... Rf8 {[%clk 0:00:38.2]} 29. f4
{[%clk 0:01:52.1]} 29... Qf5 {[%clk 0:00:31]} 30. Qf3 {[%clk 0:01:50.5]} 30...
Kh8 {[%clk 0:00:19]} 31. Re7 {[%clk 0:01:42.1]} 31... b5 {[%clk 0:00:17.7]} 32.
axb5 {[%clk 0:01:41]} 32... axb5 {[%clk 0:00:17.8]} 33. Ra1 {[%clk 0:01:38.3]}
33... Rcc8 {[%clk 0:00:16.1]} 34. Raa7 {[%clk 0:01:36.2]} 34... Rg8 {[%clk
0:00:15.9]} 35. Qb7 {[%clk 0:01:29.9]} 35... Qc5+ {[%clk 0:00:15.6]} 36. Kg2
{[%clk 0:01:25.6]} 36... Nd6 {[%clk 0:00:15.8]} 37. Qf3 {[%clk 0:00:58.3]} 37...
Qc2+ {[%clk 0:00:15.1]} 38. Kh3 {[%clk 0:00:56.8]} 38... Qf5+ {[%clk 0:00:15]}
39. g4 {[%clk 0:00:56.8]} 39... Qc2 {[%clk 0:00:13.7]} 40. Re3 {[%clk
0:00:49.9]} 40... b4 {[%clk 0:00:13.3]} 41. Rd7 {[%clk 0:00:45]} 41... Nb5
{[%clk 0:00:13]} 42. f5 {[%clk 0:00:30.4]} 42... Rc3 {[%clk 0:00:12.7]} 43. f6
{[%clk 0:00:28.1]} 43... Rxe3 {[%clk 0:00:12.1]} 44. Qxe3 {[%clk 0:00:29]} 44...
Qc3 {[%clk 0:00:11.3]} 45. Qxc3 {[%clk 0:00:25.1]} 45... Nxc3 {[%clk 0:00:10]}
46. f7 {[%clk 0:00:24.8]} 46... Rf8 {[%clk 0:00:09.8]} 47. Rb7 {[%clk
0:00:24.7]} 47... Nd5 {[%clk 0:00:08.9]} 48. Kg3 {[%clk 0:00:24.9]} 48... g6
{[%clk 0:00:08.4]} 49. Rb5 {[%clk 0:00:20.6]} 49... Nf6 {[%clk 0:00:07.6]} 50.
Rxb4 {[%clk 0:00:20.9]} 50... Kg7 {[%clk 0:00:07.4]} 51. h3 {[%clk 0:00:21.8]}
51... Rxf7 {[%clk 0:00:06.8]} 52. Rb6 {[%clk 0:00:22.7]} 52... Rd7 {[%clk
0:00:06.1]} 53. Re6 {[%clk 0:00:22.3]} 53... Rd3+ {[%clk 0:00:05.6]} 54. Kg2
{[%clk 0:00:22.3]} 54... g5 {[%clk 0:00:06]} 55. Re7+ {[%clk 0:00:21.7]} 55...
Kg6 {[%clk 0:00:05.9]} 56. Re6 {[%clk 0:00:22.2]} 56... Kf7 {[%clk 0:00:06.2]}
57. Ra6 {[%clk 0:00:22.7]} 57... Re3 {[%clk 0:00:05.4]} 58. Kh2 {[%clk
0:00:21.5]} 58... Kg7 {[%clk 0:00:03]} 59. Ra7+ {[%clk 0:00:21.4]} 59... Kg6
{[%clk 0:00:02.8]} 60. Ra6 {[%clk 0:00:22.3]} 60... Rd3 {[%clk 0:00:02.7]} 61.
Kg2 {[%clk 0:00:22.3]} 61... Re3 {[%clk 0:00:01.8]} 62. Kh2 {[%clk 0:00:22.8]}
62... Rb3 {[%clk 0:00:01.9]} 63. Kg2 {[%clk 0:00:23]} 63... Kf7 {[%clk
0:00:02.4]} 64. Ra7+ {[%clk 0:00:22.9]} 64... Ke6 {[%clk 0:00:02]} 65. Ra6+
{[%clk 0:00:23.4]} 65... Ke5 {[%clk 0:00:02.3]} 66. Ra5+ {[%clk 0:00:24]} 66...
Nd5 {[%clk 0:00:02.6]} 67. h4 {[%clk 0:00:20.3]} 67... Ke4 {[%clk 0:00:02.2]}
68. Ra6 {[%clk 0:00:21.2]} 68... Nf4+ {[%clk 0:00:01.4]} 69. Kh2 {[%clk
0:00:21.7]} 69... Rh3+ {[%clk 0:00:01.1]} 70. Kg1 {[%clk 0:00:21]} 70... Rxh4
{[%clk 0:00:02]} 71. Ra4+ {[%clk 0:00:21.2]} 71... Kf3 {[%clk 0:00:02]} 72. Ra3+
{[%clk 0:00:22.1]} 72... Kxg4 {[%clk 0:00:02.1]} 73. Kf2 {[%clk 0:00:23]} 73...
Rh2+ {[%clk 0:00:01.9]} 74. Ke1 {[%clk 0:00:23.9]} 74... h5 {[%clk 0:00:01.1]}
75. Rb3 {[%clk 0:00:23.5]} 75... h4 {[%clk 0:00:01.7]} 76. Rb5 {[%clk 0:00:24]}
76... Rg2 {[%clk 0:00:02.1]} 77. Rxg5+ {[%clk 0:00:24.9]} 77... Kxg5 {[%clk
0:00:02]} 78. Kf1 {[%clk 0:00:25.8]} 78... h3 {[%clk 0:00:02.6]} 79. Ke1 {[%clk
0:00:26.6]} 79... h2 {[%clk 0:00:03.3]} 80. Kf1 {[%clk 0:00:27.5]} 80... h1=Q#
{[%clk 0:00:03.8]} 0-1